Workbook

Sheet Cover
B2: AEC
B3: Capacity Market Model
B4: 2022-09-14 | D4: Version 1.0 | E4: Fianl
B6: Accompanying report: | E6: CEPA_AEC_FinalReport
B10: Disclaimers
B14: Version history
B16: Version | C16: Date | D16: Author | E16: Description of changes
B17: 0.1 | C17: 2022-08-31 | D17: Jacob | E17: Draft Model
B18: 0.11 | C18: 2022-09-02 | D18: Jacob | E18: Updated Draft
B19: 1.0 | C19: 2022-09-13 | D19: Jacob | E19: Final Model
B24: Contents | G24: Notes and assumptions
B39: Format key
D41: Cell intentionally blank
B42: Value | D42: Model outputs
B43: Value | D43: Hardcoded input
B44: Value | D44: User input
B45: Value | D45: Calculation
B46: Value | D46: Unique formula
B47: Value | D47: Value from another worksheet
B48: Value | D48: Formula change compared to base case scenario
B49: Value | D49: Annotation
B50: Sheet colour | D50: Information sheet
B51: Sheet colour | D51: Input sheet
B52: Sheet colour | D52: Calculation sheet
B53: Sheet colour | D53: Output sheet

Sheet Instructions
B2: Instructions
B4: Please enable macros and ensure calculations are set to automically update
B6: The 'inputs and results' sheet contains various cells where the inputs can be changed, These are coded in blue and red as shown in the key on the cover sheet
B8: Input the desired demand forecasts, generator characteristics, market price cap and target unserved energy
B10: Ensure MPC is set above generators marginal costs and the highest demand periods occur with lower probability
B12: Press the button called 'click here after updating inputs'
B14: Excel will then attempt to find a combination of generator capcity which minimises total costs in the system subject to the desired level of unserved energy
B16: The results including revenue and profits to each generator are then displayed in the 'inputs and results'
B18: Limitations
B20: There are limitations to excel solver, in particular when solving for many decimal points and small changes which can occur when finding a solution during low probability high demand dispatch intervals.
B22: These limitations do not impact our conclusions for the main purpose of the model which is to illustrate how revenues move between the energy market and capacity market.

Sheet Input and results
B2: Inputs and Results
B4: Inputs
B7: Market price cap ($/MWh) | C7: 15500 | D7: =IF(C7<MAX(C24:C29), "ERROR: MPC less than generator variable costs","") -> 
C8: Ensure Market price cap > marginal cost of the generators
B9: Target unserved energy (%) | C9: 2e-05
B11: Demand forecasts
C13: Interval 1 | D13: Interval 2 | E13: Interval 3 | F13: Interval 4 | G13: Interval 5 | H13: Interval 6
B14: Probability (%) | C14: 1 | D14: 1 | E14: 0.999 | F14: 0.999 | G14: 0.999 | H14: 0.999
B15: Demand (MWh) | C15: 3000 | D15: 10000 | E15: 10000 | F15: 8000 | G15: 5000 | H15: 11000
B16: Probability (%) | C16: =1-C14 -> 0 | D16: =1-D14 -> 0 | E16: 0.001 | F16: 0.001 | G16: 0.001 | H16: 0.001
B17: Demand (MWh) | C17: 4000 | D17: 15000 | E17: 16000 | F17: 16000 | G17: 16000 | H17: 16000
B19: Probability check | C19: =C14+C16 -> 1 | D19: 1 | E19: 1 | F19: 1 | G19: 1 | H19: 1
B21: Generator Inputs
C23: Variable costs ($/MWh) | D23: Expansions costs ($/MW) | E23: Current Capacity (MW)
B24: Generator 1 | C24: 5 | D24: 30000 | E24: 4500
B25: Generator 2 | C25: 50 | D25: 25000 | E25: 4500
B26: Generator 3 | C26: 100 | D26: 30000 | E26: 4500
B27: Generator 4 | C27: 5 | D27: 22000 | E27: 0
B28: Generator 5 | C28: 50 | D28: 18000 | E28: 0
B29: Generator 6 | C29: 100 | D29: 30000 | E29: 0
B31: Outputs
B39: Generator Outputs - listed in ascending order of variable costs
C41: Variable costs ($/MWh) | D41: Expansions costs ($/MW) | E41: Current Capacity (MW) | F41: change in capacity (MW) | G41: Total Capacity (MW) | H41: Capacity Stack (MW) | I41: Energy only revenue ($) | J41: Energy only profit ($) | K41: Cap market revenue ($) | L41: Total profit ($) | M41: Total revenue ($) | N41: MPC
B42: =Calculations!B17 -> Generator 1 | C42: =Calculations!C17 -> 5 | D42: =Calculations!D17 -> 30000 | E42: =Calculations!E17 -> 4500 | F42: =Calculations!F17-Calculations!E17 -> 0 | G42: =Calculations!F17 -> 4500 | H42: =Calculations!P17 -> 4500 | I42: =Calculations!K17 -> 1418100 | J42: =Calculations!L17 -> 1290600 | K42: =Calculations!N17 -> 80721900 | L42: =Calculations!O17 -> 82012500 | M42: =K42+I42 -> 82140000
B43: =Calculations!B18 -> Generator 4 | C43: =Calculations!C18 -> 5 | D43: =Calculations!D18 -> 22000 | E43: =Calculations!E18 -> 0 | F43: =Calculations!F18-Calculations!E18 -> 0 | G43: =Calculations!F18 -> 0 | H43: =Calculations!P18 -> 4500 | I43: =Calculations!K18 -> 0 | J43: =Calculations!L18 -> 0 | K43: =Calculations!N18 -> 0 | L43: =Calculations!O18 -> 0 | M43: =K43+I43 -> 0
B44: =Calculations!B19 -> Generator 5 | C44: =Calculations!C19 -> 50 | D44: =Calculations!D19 -> 18000 | E44: =Calculations!E19 -> 0 | F44: =Calculations!F19-Calculations!E19 -> 2264.9 | G44: =Calculations!F19 -> 2264.9 | H44: =Calculations!P19 -> 6764.9 | I44: =Calculations!K19 -> 618039.065 | J44: =Calculations!L19 -> -40628229.18 | K44: =Calculations!N19 -> 40628229.18 | L44: =Calculations!O19 -> 0 | M44: =K44+I44 -> 41246268.24
B45: =Calculations!B20 -> Generator 2 | C45: =Calculations!C20 -> 50 | D45: =Calculations!D20 -> 25000 | E45: =Calculations!E20 -> 4500 | F45: =Calculations!F20-Calculations!E20 -> 0 | G45: =Calculations!F20 -> 4500 | H45: =Calculations!P20 -> 11264.9 | I45: =Calculations!K20 -> 875584.735 | J45: =Calculations!L20 -> 278100 | K45: =Calculations!N20 -> 80721900 | L45: =Calculations!O20 -> 81000000 | M45: =K45+I45 -> 81597484.73
B46: =Calculations!B21 -> Generator 6 | C46: =Calculations!C21 -> 100 | D46: =Calculations!D21 -> 30000 | E46: =Calculations!E21 -> 0 | F46: =Calculations!F21-Calculations!E21 -> 0 | G46: =Calculations!F21 -> 0 | H46: =Calculations!P21 -> 11264.9 | I46: =Calculations!K21 -> 0 | J46: =Calculations!L21 -> 0 | K46: =Calculations!N21 -> 0 | L46: =Calculations!O21 -> 0 | M46: =K46+I46 -> 0
B47: =Calculations!B22 -> Generator 3 | C47: =Calculations!C22 -> 100 | D47: =Calculations!D22 -> 30000 | E47: =Calculations!E22 -> 4500 | F47: =Calculations!F22-Calculations!E22 -> 0 | G47: =Calculations!F22 -> 4500 | H47: =Calculations!P22 -> 15764.9 | I47: =Calculations!K22 -> 279000 | J47: =Calculations!L22 -> 277200 | K47: =Calculations!N22 -> 80721900 | L47: =Calculations!O22 -> 80999100 | M47: =IF(K47+I47="","",K47+I47) -> 81000900
B48: Totals | I48: =SUM(I42:I47) -> 3190723.8 | J48: =SUM(J42:J47) -> -38782329.18 | K48: =SUM(K42:K47) -> 282793929.2 | L48: =SUM(L42:L47) -> 244011600 | M48: =SUM(M42:M47) -> 285984653 | N48: =C7 -> 15500
B49: Previous Total | I49: 3190723.8 | J49: -38782329.18 | K49: 282793929.2 | L49: 244011600 | M49: 285984653 | N49: 15500
B50: Difference | I50: =I49-I48 -> 0 | J50: =J49-J48 -> 0 | K50: 0 | L50: 0 | M50: 0 | N50: =N49-N48 -> 0

Sheet Calculations
B2: Calculations
B4: Reorder generators by variable cost
B6: generator | C6: Variable costs | D6: Expansion costs | E6: Capacity
B7: ='Input and results'!B24 -> Generator 1 | C7: ='Input and results'!C24 -> 5 | D7: ='Input and results'!D24 -> 30000 | E7: ='Input and results'!E24 -> 4500
B8: ='Input and results'!B27 -> Generator 4 | C8: ='Input and results'!C27 -> 5 | D8: ='Input and results'!D27 -> 22000 | E8: ='Input and results'!E27 -> 0
B9: ='Input and results'!B28 -> Generator 5 | C9: ='Input and results'!C28 -> 50 | D9: ='Input and results'!D28 -> 18000 | E9: ='Input and results'!E28 -> 0
B10: ='Input and results'!B25 -> Generator 2 | C10: ='Input and results'!C25 -> 50 | D10: ='Input and results'!D25 -> 25000 | E10: ='Input and results'!E25 -> 4500
B11: ='Input and results'!B29 -> Generator 6 | C11: ='Input and results'!C29 -> 100 | D11: ='Input and results'!D29 -> 30000 | E11: ='Input and results'!E29 -> 0
B12: ='Input and results'!B26 -> Generator 3 | C12: ='Input and results'!C26 -> 100 | D12: ='Input and results'!D26 -> 30000 | E12: ='Input and results'!E26 -> 4500
B14: Generator outputs
C16: Variable costs | D16: Expansion costs | E16: current capacity | F16: optimal capacity | G16: rounded capacity | H16: Total variable costs | I16: Total expansion costs | J16: Total costs | K16: Energy rev | L16: Energy Profit | M16: Capacity Offer | N16: Capacity revenue | O16: Total profit | P16: Capacity Stack
B17: =B7 -> Generator 1 | C17: 5 | D17: 30000 | E17: 4500 | F17: 4500 | G17: =ROUND(F17,1) -> 4500 | H17: =J99 -> 127500 | I17: =IF(F17>E17,(F17-E17)*D17,0) -> 0 | J17: =H17+I17 -> 127500 | K17: =J93 -> 1418100 | L17: =J105-I17 -> 1290600 | M17: =IFERROR(-MIN(L17/F17,0),0) -> 0 | N17: =$C$27*F17 -> 80721900 | O17: =L17+N17 -> 82012500 | P17: =SUM($F$17:F17) -> 4500
B18: Generator 4 | C18: 5 | D18: 22000 | E18: 0 | F18: 0 | G18: =ROUND(F18,1) -> 0 | H18: 0 | I18: 0 | J18: 0 | K18: 0 | L18: 0 | M18: 0 | N18: 0 | O18: 0 | P18: =SUM($F$17:F18) -> 4500
B19: Generator 5 | C19: 50 | D19: 18000 | E19: 0 | F19: 2264.9 | G19: 2264.9 | H19: 478068.245 | I19: 40768200 | J19: 41246268.24 | K19: 618039.065 | L19: -40628229.18 | M19: 17938.2 | N19: 40628229.18 | O19: 0 | P19: =SUM($F$17:F19) -> 6764.9
B20: Generator 2 | C20: 50 | D20: 25000 | E20: 4500 | F20: 4500 | G20: 4500 | H20: 597484.735 | I20: 0 | J20: 597484.735 | K20: 875584.735 | L20: 278100 | M20: 0 | N20: 80721900 | O20: 81000000 | P20: =SUM($F$17:F20) -> 11264.9
B21: Generator 6 | C21: 100 | D21: 30000 | E21: 0 | F21: 0 | G21: 0 | H21: 0 | I21: 0 | J21: 0 | K21: 0 | L21: 0 | M21: 0 | N21: 0 | O21: 0 | P21: =SUM($F$17:F21) -> 11264.9
B22: Generator 3 | C22: 100 | D22: 30000 | E22: 4500 | F22: 4500 | G22: 4500 | H22: 1800 | I22: 0 | J22: 1800 | K22: 279000 | L22: 277200 | M22: 0 | N22: 80721900 | O22: 80999100 | P22: =SUM($F$17:F22) -> 15764.9
B24: Total current Capacity | C24: =SUM(E17:E22) -> 13500
B25: Optimal level of capacity | C25: =SUM(F17:F22) -> 15764.9
B26: Total costs | C26: =SUM(J17:J22) -> 41973052.98
B27: Capacity price | C27: =MAX(M17:M22) -> 17938.2
B28: Target unserved | C28: ='Input and results'!C9*100000 -> 2
B29: unserved energy | C29: =(J92/J91)*100000 -> 1.99957474
D32: Interval 1 | E32: Interval 2 | F32: Interval 3 | G32: Interval 4 | H32: Interval 5 | I32: Interval 6 | J32: Total
B33: Forecast 1 | C33: Probability (%) | D33: ='Input and results'!$C$14 -> 1 | E33: ='Input and results'!$D$14 -> 1 | F33: ='Input and results'!$E$14 -> 0.999 | G33: ='Input and results'!$F$14 -> 0.999 | H33: ='Input and results'!$G$14 -> 0.999 | I33: ='Input and results'!$H$14 -> 0.999 | J33: NA
C34: Demand (MWh) | D34: ='Input and results'!$C$15 -> 3000 | E34: ='Input and results'!$D$15 -> 10000 | F34: ='Input and results'!$E$15 -> 10000 | G34: ='Input and results'!$F$15 -> 8000 | H34: ='Input and results'!$G$15 -> 5000 | I34: ='Input and results'!$H$15 -> 11000 | J34: =SUM(D34:I34) -> 47000
C35: Energy price ($/MWh) | D35: =MIN(IF(D$34<=$P$17,$C$17,IF(D$34<=$P$18,$C$18,IF(D$34<=$P$19,$C$19,IF(D$34<=$P$20,$C$20,IF(D$34<=$P$21,$C$21,IF(D$34<=$P$22,$C$22,'Input and results'!$C$7)))))),'Input and results'!$C$7) -> 5 | E35: =MIN(IF(E$34<=$P$17,$C$17,IF(E$34<=$P$18,$C$18,IF(E$34<=$P$19,$C$19,IF(E$34<=$P$20,$C$20,IF(E$34<=$P$21,$C$21,IF(E$34<=$P$22,$C$22,'Input and results'!$C$7)))))),'Input and results'!$C$7) -> 50 | F35: =MIN(IF(F$34<=$P$17,$C$17,IF(F$34<=$P$18,$C$18,IF(F$34<=$P$19,$C$19,IF(F$34<=$P$20,$C$20,IF(F$34<=$P$21,$C$21,IF(F$34<=$P$22,$C$22,'Input and results'!$C$7)))))),'Input and results'!$C$7) -> 50 | G35: =MIN(IF(G$34<=$P$17,$C$17,IF(G$34<=$P$18,$C$18,IF(G$34<=$P$19,$C$19,IF(G$34<=$P$20,$C$20,IF(G$34<=$P$21,$C$21,IF(G$34<=$P$22,$C$22,'Input and results'!$C$7)))))),'Input and results'!$C$7) -> 50 | H35: =MIN(IF(H$34<=$P$17,$C$17,IF(H$34<=$P$18,$C$18,IF(H$34<=$P$19,$C$19,IF(H$34<=$P$20,$C$20,IF(H$34<=$P$21,$C$21,IF(H$34<=$P$22,$C$22,'Input and results'!$C$7)))))),'Input and results'!$C$7) -> 50 | I35: =MIN(IF(I$34<=$P$17,$C$17,IF(I$34<=$P$18,$C$18,IF(I$34<=$P$19,$C$19,IF(I$34<=$P$20,$C$20,IF(I$34<=$P$21,$C$21,IF(I$34<=$P$22,$C$22,'Input and results'!$C$7)))))),'Input and results'!$C$7) -> 50 | J35: NA
C36: Served demand (MWh) | D36: =SUM(D38:D43) -> 3000 | E36: =SUM(E38:E43) -> 10000 | F36: 10000 | G36: 8000 | H36: 5000 | I36: 11000 | J36: =SUM(D36:I36) -> 47000
C37: Unserved energy (MWh) | D37: =D34-D36 -> 0 | E37: 0 | F37: 0 | G37: 0 | H37: 0 | I37: 0 | J37: 0
C38: G1 quantity (MWh) | D38: =IF(D34>=$F$17,$F$17,D34) -> 3000 | E38: =IF(E34>=$F$17,$F$17,E34) -> 4500 | F38: 4500 | G38: 4500 | H38: 4500 | I38: 4500 | J38: =SUM(D38:I38) -> 25500
C39: G2 quantity (MWh) | D39: =IF(D$34>=$P18,$F18,D$34-SUM(D$38:D38)) -> 0 | E39: =IF(E$34>=$P18,$F18,E$34-SUM(E$38:E38)) -> 0 | F39: =IF(F$34>=$P18,$F18,F$34-SUM(F$38:F38)) -> 0 | G39: =IF(G$34>=$P18,$F18,G$34-SUM(G$38:G38)) -> 0 | H39: =IF(H$34>=$P18,$F18,H$34-SUM(H$38:H38)) -> 0 | I39: =IF(I$34>=$P18,$F18,I$34-SUM(I$38:I38)) -> 0 | J39: 0
C40: G3 quantity (MWh) | D40: =IF(D$34>=$P19,$F19,D$34-SUM(D$38:D39)) -> 0 | E40: =IF(E$34>=$P19,$F19,E$34-SUM(E$38:E39)) -> 2264.9 | F40: =IF(F$34>=$P19,$F19,F$34-SUM(F$38:F39)) -> 2264.9 | G40: =IF(G$34>=$P19,$F19,G$34-SUM(G$38:G39)) -> 2264.9 | H40: =IF(H$34>=$P19,$F19,H$34-SUM(H$38:H39)) -> 500 | I40: =IF(I$34>=$P19,$F19,I$34-SUM(I$38:I39)) -> 2264.9 | J40: 9559.6
C41: G4 quantity (MWh) | D41: =IF(D$34>=$P20,$F20,D$34-SUM(D$38:D40)) -> 0 | E41: =IF(E$34>=$P20,$F20,E$34-SUM(E$38:E40)) -> 3235.1 | F41: =IF(F$34>=$P20,$F20,F$34-SUM(F$38:F40)) -> 3235.1 | G41: =IF(G$34>=$P20,$F20,G$34-SUM(G$38:G40)) -> 1235.1 | H41: =IF(H$34>=$P20,$F20,H$34-SUM(H$38:H40)) -> 0 | I41: =IF(I$34>=$P20,$F20,I$34-SUM(I$38:I40)) -> 4235.1 | J41: 11940.4
C42: G5 quantity (MWh) | D42: =IF(D$34>=$P21,$F21,D$34-SUM(D$38:D41)) -> 0 | E42: =IF(E$34>=$P21,$F21,E$34-SUM(E$38:E41)) -> 0 | F42: =IF(F$34>=$P21,$F21,F$34-SUM(F$38:F41)) -> 0 | G42: =IF(G$34>=$P21,$F21,G$34-SUM(G$38:G41)) -> 0 | H42: =IF(H$34>=$P21,$F21,H$34-SUM(H$38:H41)) -> 0 | I42: =IF(I$34>=$P21,$F21,I$34-SUM(I$38:I41)) -> 0 | J42: 0
C43: G6 quantity (MWh) | D43: =IF(D$34>=$P22,$F22,D$34-SUM(D$38:D42)) -> 0 | E43: =IF(E$34>=$P22,$F22,E$34-SUM(E$38:E42)) -> 0 | F43: =IF(F$34>=$P22,$F22,F$34-SUM(F$38:F42)) -> 0 | G43: =IF(G$34>=$P22,$F22,G$34-SUM(G$38:G42)) -> 0 | H43: =IF(H$34>=$P22,$F22,H$34-SUM(H$38:H42)) -> 0 | I43: =IF(I$34>=$P22,$F22,I$34-SUM(I$38:I42)) -> 0 | J43: 0
C44: G1 revenue ($) | D44: =D38*D$35 -> 15000 | E44: =E38*E$35 -> 225000 | F44: 225000 | G44: 225000 | H44: 225000 | I44: 225000 | J44: =SUM(D44:I44) -> 1140000
C45: G2 revenue ($) | D45: =D39*D$35 -> 0 | E45: 0 | F45: 0 | G45: 0 | H45: 0 | I45: 0 | J45: =SUM(D45:I45) -> 0
C46: G3 revenue ($) | D46: 0 | E46: 113245 | F46: 113245 | G46: 113245 | H46: 25000 | I46: 113245 | J46: 477980
C47: G4 revenue ($) | D47: 0 | E47: 161755 | F47: 161755 | G47: 61755 | H47: 0 | I47: 211755 | J47: 597020
C48: G5 revenue ($) | D48: 0 | E48: 0 | F48: 0 | G48: 0 | H48: 0 | I48: 0 | J48: 0
C49: G6 revenue ($) | D49: 0 | E49: 0 | F49: 0 | G49: 0 | H49: 0 | I49: 0 | J49: 0
C50: G1 variable costs ($) | D50: =D38*$C7 -> 15000 | E50: 22500 | F50: 22500 | G50: 22500 | H50: 22500 | I50: 22500 | J50: =SUM(D50:I50) -> 127500
C51: G2 variable costs ($) | D51: 0 | E51: 0 | F51: 0 | G51: 0 | H51: 0 | I51: 0 | J51: 0
C52: G3 variable costs ($) | D52: 0 | E52: 113245 | F52: 113245 | G52: 113245 | H52: 25000 | I52: 113245 | J52: 477980
C53: G4 variable costs ($) | D53: 0 | E53: 161755 | F53: 161755 | G53: 61755 | H53: 0 | I53: 211755 | J53: 597020
C54: G5 variable costs ($) | D54: 0 | E54: 0 | F54: 0 | G54: 0 | H54: 0 | I54: 0 | J54: 0
C55: G6 variable costs ($) | D55: 0 | E55: 0 | F55: 0 | G55: 0 | H55: 0 | I55: 0 | J55: 0
C56: G1 variable profit ($) | D56: =D44-D50 -> 0 | E56: 202500 | F56: 202500 | G56: 202500 | H56: 202500 | I56: 202500 | J56: 1012500
C57: G2 variable profit ($) | D57: =D45-D51 -> 0 | E57: 0 | F57: 0 | G57: 0 | H57: 0 | I57: 0 | J57: 0
C58: G3 variable profit ($) | D58: =D46-D52 -> 0 | E58: =E46-E52 -> 0 | F58: 0 | G58: 0 | H58: 0 | I58: 0 | J58: 0
C59: G4 variable profit ($) | D59: =D47-D53 -> 0 | E59: 0 | F59: 0 | G59: 0 | H59: 0 | I59: 0 | J59: 0
C60: G5 variable profit ($) | D60: =D48-D54 -> 0 | E60: 0 | F60: 0 | G60: 0 | H60: 0 | I60: 0 | J60: 0
C61: G6 variable profit ($) | D61: =D49-D55 -> 0 | E61: 0 | F61: 0 | G61: 0 | H61: 0 | I61: 0 | J61: 0
B62: Forecast 2 | C62: Probability (%) | D62: ='Input and results'!$C$16 -> 0 | E62: ='Input and results'!$D$16 -> 0 | F62: ='Input and results'!$E$16 -> 0.001 | G62: ='Input and results'!$F$16 -> 0.001 | H62: ='Input and results'!$G$16 -> 0.001 | I62: ='Input and results'!$H$16 -> 0.001 | J62: NA
C63: Demand (MWh) | D63: ='Input and results'!$C$17 -> 4000 | E63: ='Input and results'!$D$17 -> 15000 | F63: ='Input and results'!$E$17 -> 16000 | G63: ='Input and results'!$F$17 -> 16000 | H63: ='Input and results'!$G$17 -> 16000 | I63: ='Input and results'!$H$17 -> 16000 | J63: =SUM(D63:I63) -> 83000
C64: Energy price ($/MWh) | D64: =MIN(IF(D$63<=$P$17,$C$17,IF(D$63<=$P$18,$C$18,IF(D$63<=$P$19,$C$19,IF(D$63<=$P$20,$C$20,IF(D$63<=$P$21,$C$21,IF(D$63<=$P$22,$C$22,'Input and results'!$C$7)))))),'Input and results'!$C$7) -> 5 | E64: =MIN(IF(E$63<=$P$17,$C$17,IF(E$63<=$P$18,$C$18,IF(E$63<=$P$19,$C$19,IF(E$63<=$P$20,$C$20,IF(E$63<=$P$21,$C$21,IF(E$63<=$P$22,$C$22,'Input and results'!$C$7)))))),'Input and results'!$C$7) -> 100 | F64: =MIN(IF(F$63<=$P$17,$C$17,IF(F$63<=$P$18,$C$18,IF(F$63<=$P$19,$C$19,IF(F$63<=$P$20,$C$20,IF(F$63<=$P$21,$C$21,IF(F$63<=$P$22,$C$22,'Input and results'!$C$7)))))),'Input and results'!$C$7) -> 15500 | G64: =MIN(IF(G$63<=$P$17,$C$17,IF(G$63<=$P$18,$C$18,IF(G$63<=$P$19,$C$19,IF(G$63<=$P$20,$C$20,IF(G$63<=$P$21,$C$21,IF(G$63<=$P$22,$C$22,'Input and results'!$C$7)))))),'Input and results'!$C$7) -> 15500 | H64: =MIN(IF(H$63<=$P$17,$C$17,IF(H$63<=$P$18,$C$18,IF(H$63<=$P$19,$C$19,IF(H$63<=$P$20,$C$20,IF(H$63<=$P$21,$C$21,IF(H$63<=$P$22,$C$22,'Input and results'!$C$7)))))),'Input and results'!$C$7) -> 15500 | I64: =MIN(IF(I$63<=$P$17,$C$17,IF(I$63<=$P$18,$C$18,IF(I$63<=$P$19,$C$19,IF(I$63<=$P$20,$C$20,IF(I$63<=$P$21,$C$21,IF(I$63<=$P$22,$C$22,'Input and results'!$C$7)))))),'Input and results'!$C$7) -> 15500 | J64: NA
C65: Served demand (MWh) | D65: =SUM(D67:D72) -> 4000 | E65: =SUM(E67:E72) -> 15000 | F65: 15764.9 | G65: 15764.9 | H65: 15764.9 | I65: 15764.9 | J65: =SUM(D65:I65) -> 82059.6
C66: Unserved energy (MWh) | D66: =D63-D65 -> 0 | E66: 0 | F66: 235.1 | G66: 235.1 | H66: 235.1 | I66: 235.1 | J66: 940.4
C67: G1 quantity (MWh) | D67: =IF(D63>=$F$17,$F$17,D63) -> 4000 | E67: =IF(E63>=$F$17,$F$17,E63) -> 4500 | F67: 4500 | G67: 4500 | H67: 4500 | I67: 4500 | J67: =SUM(D67:I67) -> 26500
C68: G2 quantity (MWh) | D68: =IF(D$63>=$P18,$F18,D$63-SUM(D$67:D67)) -> 0 | E68: =IF(E$63>=$P18,$F18,E$63-SUM(E$67:E67)) -> 0 | F68: =IF(F$63>=$P18,$F18,F$63-SUM(F$67:F67)) -> 0 | G68: =IF(G$63>=$P18,$F18,G$63-SUM(G$67:G67)) -> 0 | H68: =IF(H$63>=$P18,$F18,H$63-SUM(H$67:H67)) -> 0 | I68: =IF(I$63>=$P18,$F18,I$63-SUM(I$67:I67)) -> 0 | J68: 0
C69: G3 quantity (MWh) | D69: =IF(D$63>=$P19,$F19,D$63-SUM(D$67:D68)) -> 0 | E69: =IF(E$63>=$P19,$F19,E$63-SUM(E$67:E68)) -> 2264.9 | F69: =IF(F$63>=$P19,$F19,F$63-SUM(F$67:F68)) -> 2264.9 | G69: =IF(G$63>=$P19,$F19,G$63-SUM(G$67:G68)) -> 2264.9 | H69: =IF(H$63>=$P19,$F19,H$63-SUM(H$67:H68)) -> 2264.9 | I69: =IF(I$63>=$P19,$F19,I$63-SUM(I$67:I68)) -> 2264.9 | J69: 11324.5
C70: G4 quantity (MWh) | D70: =IF(D$63>=$P20,$F20,D$63-SUM(D$67:D69)) -> 0 | E70: =IF(E$63>=$P20,$F20,E$63-SUM(E$67:E69)) -> 4500 | F70: =IF(F$63>=$P20,$F20,F$63-SUM(F$67:F69)) -> 4500 | G70: =IF(G$63>=$P20,$F20,G$63-SUM(G$67:G69)) -> 4500 | H70: =IF(H$63>=$P20,$F20,H$63-SUM(H$67:H69)) -> 4500 | I70: =IF(I$63>=$P20,$F20,I$63-SUM(I$67:I69)) -> 4500 | J70: 22500
C71: G5 quantity (MWh) | D71: =IF(D$63>=$P21,$F21,D$63-SUM(D$67:D70)) -> 0 | E71: =IF(E$63>=$P21,$F21,E$63-SUM(E$67:E70)) -> 0 | F71: =IF(F$63>=$P21,$F21,F$63-SUM(F$67:F70)) -> 0 | G71: =IF(G$63>=$P21,$F21,G$63-SUM(G$67:G70)) -> 0 | H71: =IF(H$63>=$P21,$F21,H$63-SUM(H$67:H70)) -> 0 | I71: =IF(I$63>=$P21,$F21,I$63-SUM(I$67:I70)) -> 0 | J71: 0
C72: G6 quantity (MWh) | D72: =IF(D$63>=$P22,$F22,D$63-SUM(D$67:D71)) -> 0 | E72: =IF(E$63>=$P22,$F22,E$63-SUM(E$67:E71)) -> 3735.1 | F72: =IF(F$63>=$P22,$F22,F$63-SUM(F$67:F71)) -> 4500 | G72: =IF(G$63>=$P22,$F22,G$63-SUM(G$67:G71)) -> 4500 | H72: =IF(H$63>=$P22,$F22,H$63-SUM(H$67:H71)) -> 4500 | I72: =IF(I$63>=$P22,$F22,I$63-SUM(I$67:I71)) -> 4500 | J72: 21735.1
C73: G1 revenue ($) | D73: =D67*D$64 -> 20000 | E73: =E67*E$64 -> 450000 | F73: 69750000 | G73: 69750000 | H73: 69750000 | I73: 69750000 | J73: 279470000
C74: G2 revenue ($) | D74: =D68*D$64 -> 0 | E74: 0 | F74: 0 | G74: 0 | H74: 0 | I74: 0 | J74: 0
C75: G3 revenue ($) | D75: 0 | E75: 226490 | F75: 35105950 | G75: 35105950 | H75: 35105950 | I75: 35105950 | J75: 140650290
C76: G4 revenue ($) | D76: 0 | E76: 450000 | F76: 69750000 | G76: 69750000 | H76: 69750000 | I76: 69750000 | J76: 279450000
C77: G5 revenue ($) | D77: 0 | E77: 0 | F77: 0 | G77: 0 | H77: 0 | I77: 0 | J77: 0
C78: G6 revenue ($) | D78: 0 | E78: 373510 | F78: 69750000 | G78: 69750000 | H78: 69750000 | I78: 69750000 | J78: 279373510
C79: G1 variable costs ($) | D79: =D67*$C17 -> 20000 | E79: 22500 | F79: 22500 | G79: 22500 | H79: 22500 | I79: 22500 | J79: 132500
C80: G2 variable costs ($) | D80: 0 | E80: 0 | F80: 0 | G80: 0 | H80: 0 | I80: 0 | J80: 0
C81: G3 variable costs ($) | D81: 0 | E81: 113245 | F81: 113245 | G81: 113245 | H81: 113245 | I81: 113245 | J81: 566225
C82: G4 variable costs ($) | D82: 0 | E82: 225000 | F82: 225000 | G82: 225000 | H82: 225000 | I82: 225000 | J82: 1125000
C83: G5 variable costs ($) | D83: 0 | E83: 0 | F83: 0 | G83: 0 | H83: 0 | I83: 0 | J83: 0
C84: G6 variable costs ($) | D84: 0 | E84: 373510 | F84: 450000 | G84: 450000 | H84: 450000 | I84: 450000 | J84: 2173510
C85: G1 variable profit ($) | D85: =D73-D79 -> 0 | E85: =E73-E79 -> 427500 | F85: 69727500 | G85: 69727500 | H85: 69727500 | I85: 69727500 | J85: 279337500
C86: G2 variable profit ($) | D86: =D74-D80 -> 0 | E86: 0 | F86: 0 | G86: 0 | H86: 0 | I86: 0 | J86: 0
C87: G3 variable profit ($) | D87: =D75-D81 -> 0 | E87: 113245 | F87: 34992705 | G87: 34992705 | H87: 34992705 | I87: 34992705 | J87: 140084065
C88: G4 variable profit ($) | D88: =D76-D82 -> 0 | E88: 225000 | F88: 69525000 | G88: 69525000 | H88: 69525000 | I88: 69525000 | J88: 278325000
C89: G5 variable profit ($) | D89: =D77-D83 -> 0 | E89: 0 | F89: 0 | G89: 0 | H89: 0 | I89: 0 | J89: 0
C90: G6 variable profit ($) | D90: =D78-D84 -> 0 | E90: 0 | F90: 69300000 | G90: 69300000 | H90: 69300000 | I90: 69300000 | J90: 277200000
B91: Prob weighted average | C91: Demand (MWh) | D91: =D$33*D34+D$62*D63 -> 3000 | E91: 10000 | F91: 10006 | G91: 8008 | H91: 5011 | I91: 11005 | J91: 47030
C92: Unserved energy (MWh) | D92: =D$33*D37+D$62*D66 -> 0 | E92: 0 | F92: 0.2351 | G92: 0.2351 | H92: 0.2351 | I92: 0.2351 | J92: 0.9404
C93: G1 revenue ($) | D93: =D$33*D44+D$62*D73 -> 15000 | E93: 225000 | F93: 294525 | G93: 294525 | H93: 294525 | I93: 294525 | J93: 1418100
C94: G2 revenue ($) | D94: 0 | E94: 0 | F94: 0 | G94: 0 | H94: 0 | I94: 0 | J94: 0
C95: G3 revenue ($) | D95: 0 | E95: 113245 | F95: 148237.705 | G95: 148237.705 | H95: 60080.95 | I95: 148237.705 | J95: 618039.065
C96: G4 revenue ($) | D96: 0 | E96: 161755 | F96: 231343.245 | G96: 131443.245 | H96: 69750 | I96: 281293.245 | J96: 875584.735
C97: G5 revenue ($) | D97: 0 | E97: 0 | F97: 0 | G97: 0 | H97: 0 | I97: 0 | J97: 0
C98: G6 revenue ($) | D98: 0 | E98: 0 | F98: 69750 | G98: 69750 | H98: 69750 | I98: 69750 | J98: 279000
C99: G1 variable costs ($) | D99: 15000 | E99: 22500 | F99: 22500 | G99: 22500 | H99: 22500 | I99: 22500 | J99: 127500
C100: G2 variable costs ($) | D100: 0 | E100: 0 | F100: 0 | G100: 0 | H100: 0 | I100: 0 | J100: 0
C101: G3 variable costs ($) | D101: 0 | E101: 113245 | F101: 113245 | G101: 113245 | H101: 25088.245 | I101: 113245 | J101: 478068.245
C102: G4 variable costs ($) | D102: 0 | E102: 161755 | F102: 161818.245 | G102: 61918.245 | H102: 225 | I102: 211768.245 | J102: 597484.735
C103: G5 variable costs ($) | D103: =D$33*D54+D$62*D83 -> 0 | E103: 0 | F103: 0 | G103: 0 | H103: 0 | I103: 0 | J103: 0
C104: G6 variable costs ($) | D104: 0 | E104: 0 | F104: 450 | G104: 450 | H104: 450 | I104: 450 | J104: 1800
C105: G1 variable profit ($) | D105: 0 | E105: 202500 | F105: 272025 | G105: 272025 | H105: 272025 | I105: 272025 | J105: 1290600
C106: G2 variable profit ($) | D106: 0 | E106: 0 | F106: 0 | G106: 0 | H106: 0 | I106: 0 | J106: 0
C107: G3 variable profit ($) | D107: 0 | E107: 0 | F107: 34992.705 | G107: 34992.705 | H107: 34992.705 | I107: 34992.705 | J107: 139970.82
C108: G4 variable profit ($) | D108: 0 | E108: 0 | F108: 69525 | G108: 69525 | H108: 69525 | I108: 69525 | J108: 278100
C109: G5 variable profit ($) | D109: 0 | E109: 0 | F109: 0 | G109: 0 | H109: 0 | I109: 0 | J109: 0
C110: G6 variable profit ($) | D110: 0 | E110: 0 | F110: 69300 | G110: 69300 | H110: 69300 | I110: 69300 | J110: 277200
D113: Energy only revenue ($) | E113: Energy only profit ($) | F113: Cap market revenue ($) | G113: Total profit ($) | H113: Total revenue ($) | I113: MPC
D114: 2843896 | E114: -39129156.98 | F114: 283140757 | G114: 244011600 | H114: 285984653 | I114: 10000
